fUST/lending_fUST_20250521
["ID","MTS","AMOUNT","RATE_DAILY","PERIOD"]
[361792920,1747803046442,-1047.38,0.00019452,2]
[361792921,1747803046452,-469.67,0.00019452,2]
[361792922,1747803046461,-422.71322487,0.00019595,2]
[361792923,1747803046470,-894.64583333,0.00019595,2]
[361792924,1747803046480,-160.0,0.00019595,2]
[361792925,1747803046489,-12643.00196899,0.00019595,2]
[361792926,1747803046499,-194.00000001,0.000196,5]
[361792927,1747803046508,-208.33333333,0.00019668,2]
[361792928,1747803046518,-453.32839942,0.00019668,2]
[361792929,1747803046527,-430.0,0.00019726,2]
[361792930,1747803046537,-877.67,0.00019726,2]
[361792931,1747803046546,-1962.0,0.00019726,2]
[361792932,1747803046555,-1047.38,0.00019726,2]
[361792933,1747803046565,-469.67,0.00019726,2]
[361792934,1747803046575,-1044.45144243,0.00019744,2]
[361792935,1747803046585,-200.05562087,0.0001978,2]
[361792936,1747803046595,-500.0,0.00019999,2]
[361792937,1747803046604,-500.0,0.00019999,2]
[361792938,1747803046615,-335.29627649,0.00019999,2]
[361792939,1747803046625,-175.42728013,0.00019999,2]
[361792940,1747803046635,-500.0,0.00019999,2]
[361792941,1747803046645,-500.0,0.00019999,2]
[361792942,1747803046654,-5890.03789832,0.0002,7]
[361792943,1747803046665,-430.0,0.0002,2]
[361792944,1747803046675,-193.12956277,0.0002,2]
[361792945,1747803046685,-877.67,0.0002,2]
[361792946,1747803046695,-1962.0,0.0002,2]
[361792947,1747803046705,-1047.38,0.0002,2]
[361792948,1747803046714,-469.67,0.0002,2]
[361792949,1747803046724,-200.05562087,0.0002014,2]
[361792950,1747803046733,-319.711063,0.00020187,2]
[361792951,1747803046743,-160.0,0.00020207,2]
[361792952,1747803046752,-160.0,0.00020215,2]
[361792953,1747803046761,-242.73555473,0.00020226,2]
[361792954,1747803046771,-430.0,0.00020273,2]
[361792955,1747803046780,-877.67,0.00020273,2]
[361792956,1747803046790,-1962.0,0.00020273,2]
[361792957,1747803046800,-1047.38,0.00020273,2]
[361792958,1747803046809,-469.67,0.00020273,2]
[361792959,1747803046819,-404.0,0.00020314,2]
[361792960,1747803046829,-200.05562087,0.000205,3]
[361792961,1747803046839,-430.0,0.00020547,2]
[361792962,1747803046849,-877.67,0.00020547,2]
[361792963,1747803046859,-1962.0,0.00020547,2]
[361792964,1747803046868,-1047.38,0.00020547,2]
[361792965,1747803046877,-469.67,0.00020547,2]
[361792966,1747803046888,-1044.45144243,0.0002063,2]
[361792967,1747803046897,-430.0,0.00020821,2]
[361792968,1747803046906,-877.67,0.00020821,2]
[361792969,1747803046915,-1962.0,0.00020821,2]
[361792970,1747803046925,-1047.38,0.00020821,2]
[361792971,1747803046935,-469.67,0.00020821,2]
[361792972,1747803046945,-200.05562087,0.0002086,4]
[361792973,1747803046955,-230.533,0.00020943,2]
[361792974,1747803046965,-430.0,0.00021095,2]
[361792975,1747803046974,-877.67,0.00021095,2]
[361792976,1747803046984,-1962.0,0.00021095,2]
[361792977,1747803046994,-1047.38,0.00021095,2]
[361792978,1747803047003,-469.67,0.00021095,2]
[361792979,1747803047013,-500.0,0.00021184,2]
[361792980,1747803047023,-1000.0,0.000212,3]
[361792981,1747803047032,-200.05562087,0.0002122,4]
[361792982,1747803047041,-242.73555473,0.00021269,2]
[361792983,1747803047050,-430.0,0.00021369,2]
[361792984,1747803047060,-877.67,0.00021369,2]
[361792985,1747803047069,-1962.0,0.00021369,2]
[361792986,1747803047079,-1047.38,0.00021369,2]
[361792987,1747803047088,-469.67,0.00021369,2]
[361792988,1747803047098,-1044.45144243,0.00021515,2]
[361792989,1747803047107,-491.921187,0.0002156,2]
[361792990,1747803047117,-200.05562087,0.0002158,5]
[361792991,1747803047127,-430.0,0.00021643,2]
[361792992,1747803047138,-877.67,0.00021643,2]
[361792993,1747803047148,-1962.0,0.00021643,2]
[361792994,1747803047157,-1047.38,0.00021643,2]
[361792995,1747803047167,-1000.0,0.000218,4]
[361792996,1747803047177,-3655.46799402,0.000219,2]
[361792997,1747803047186,-214.61,0.00021917,2]
[361792998,1747803047195,-430.0,0.00021917,2]
[361792999,1747803047205,-2128.08,0.00021917,2]
[361793000,1747803047215,-877.67,0.00021917,2]
[361793001,1747803047225,-1047.38,0.00021917,2]
[361793002,1747803047234,-1962.0,0.00021917,2]
[361793003,1747803047244,-500.0,0.00021918,2]
[361793004,1747803047253,-500.0,0.00021918,2]
[361793005,1747803047262,-500.0,0.00021918,2]
[361793006,1747803047272,-500.0,0.00021918,2]
[361793007,1747803047281,-500.0,0.00021918,2]
[361793008,1747803047291,-500.0,0.00021918,2]
[361793009,1747803047300,-500.0,0.00021918,2]
[361793010,1747803047310,-500.0,0.00021918,2]
[361793011,1747803047321,-500.0,0.00021918,2]
[361793012,1747803047330,-500.0,0.00021918,2]
[361793013,1747803047343,-243.64212909,0.00021918,2]
[361793014,1747803047353,-500.0,0.00021918,2]
[361793015,1747803047362,-200.05562087,0.0002194,6]
[361793016,1747803047371,-16581.70429642,0.00022,2]
[361793017,1747803047382,-50000.0,0.00022,2]
[361793018,1747803047394,-50000.0,0.00022,2]
[361793019,1747803047404,-50000.0,0.00022,2]
[361793020,1747803047417,-50000.0,0.00022,2]
[361793021,1747803047427,-50000.0,0.00022,2]
[361793022,1747803047437,-175.0,0.00022,2]
[361793023,1747803047446,-414.0,0.00022087,15]
[361793024,1747803047456,-214.61,0.00022191,30]
[361793025,1747803047466,-430.0,0.00022191,2]
[361793026,1747803047475,-877.67,0.00022191,2]
[361793027,1747803047485,-1047.38,0.00022191,2]
[361793028,1747803047494,-1962.0,0.00022191,2]
[361793029,1747803047504,-500.0,0.0002228,2]
[361793030,1747803047514,-200.05562087,0.000223,7]
[361793031,1747803047523,-242.73555473,0.00022312,2]
[361793032,1747803047532,-339.19819201,0.000224,3]
[361793033,1747803047542,-1044.45144243,0.000224,2]
[361793034,1747803047552,-214.61,0.00022465,30]
[361793035,1747803047561,-326.25115922,0.00022465,2]
[361793036,1747803047571,-877.67,0.00022465,2]
[361793037,1747803047580,-1962.0,0.00022465,2]
[361793038,1747803047589,-1047.38,0.00022465,2]
[361793039,1747803047599,-50000.0,0.000225,2]
[361793040,1747803047608,-50000.0,0.000225,2]
[361793041,1747803047617,-500.0,0.0002258,2]
[361793042,1747803047627,-200.05562087,0.0002266,7]
[361793043,1747803047637,-214.61,0.00022739,30]
[361793044,1747803047646,-877.80548891,0.00022739,2]
[361793045,1747803047656,-1962.04418512,0.00022739,2]
[361793046,1747803047666,-1047.51395413,0.00022739,2]
[361793047,1747803047676,-800.0,0.00022744,2]
[361793048,1747803047686,-800.0,0.00022788,2]
[361793049,1747803047695,-800.0,0.00022799,2]
[361793050,1747803047705,-800.0,0.00022825,2]
[361793051,1747803047715,-800.0,0.00022831,2]
[361793052,1747803047724,-800.0,0.00022831,2]
[361793053,1747803047734,-800.0,0.00022832,2]
[361793054,1747803047743,-800.0,0.00022833,2]
[361793055,1747803047753,-800.0,0.00022835,2]
[361793056,1747803047763,-800.0,0.00022838,2]
[361793057,1747803047773,-800.0,0.0002284,2]
[361793058,1747803047784,-800.0,0.0002284,2]
[361793059,1747803047794,-800.0,0.00022856,2]
[361793060,1747803047804,-800.0,0.00022864,2]
[361793061,1747803047814,-394.15354407,0.00022887,2]
[361793062,1747803047824,-800.0,0.00022894,2]
[361793063,1747803047833,-800.0,0.00022912,2]
[361793064,1747803047843,-800.0,0.00022927,2]
[361793065,1747803047852,-800.0,0.00022943,2]
[361793066,1747803047862,-800.0,0.00022957,2]
[361793067,1747803047872,-800.0,0.00022971,2]
[361793068,1747803047882,-800.0,0.00022979,2]
[361793069,1747803047892,-170308.00450784,0.00023,6]
[361793070,1747803047910,-272.19120742,0.00021643,2]
[361793071,1747803047922,-197.47879258,0.00021643,2]
[361793072,1747803047932,-13951.8651596,0.00023,6]
[361793075,1747803931829,-325.264632,0.00013699,2]
[361793076,1747803931854,-5000.0,0.00014635,2]
[361793077,1747803931878,-234.53497972,0.00014783,2]
[361793078,1747803931900,-205.8384033,0.00014789,2]
[361793079,1747803931928,-160.0,0.00015,2]
[361793080,1747803931950,-940.776823,0.00015394,2]
[361793081,1747803931972,-300.0,0.00015399,2]
[361793082,1747803931994,-300.0,0.000154,2]
[361793083,1747803932016,-1200.0,0.000154,2]
[361793084,1747803932038,-2409.2062167,0.00015401,2]
[361793085,1747803932060,-1065.3011203,0.0001563,2]
[361793086,1747803932085,-3844.18022841,0.000159,2]
[361793087,1747803932107,-1564.12397293,0.00015921,2]
[361793088,1747803932133,-3844.18022839,0.00016245,2]
[361793089,1747803932155,-435.27064831,0.00016338,2]
[361793090,1747803932178,-214.34056911,0.00016438,2]
[361793091,1747803932200,-430.0,0.00016438,2]
[361793092,1747803932221,-409.86318513,0.00016438,2]
[361793093,1747803932243,-430.0,0.00016438,2]
[361793094,1747803932265,-547.42155493,0.00016438,2]
[361793095,1747803932288,-430.0,0.00016438,2]
[361793096,1747803932312,-430.0,0.00016438,2]
[361793097,1747803932335,-279.69743777,0.00016438,2]
[361793098,1747804015371,-1907.815517,0.00015669,2]
[361793099,1747804015393,-1836.2833787,0.00015997,2]
[361793100,1747804015415,-1255.9011043,0.00016274,2]
[361793124,1747804232310,-161.407979,0.0001578,2]
[361793125,1747804232322,-161.407979,0.00015859,2]
[361793126,1747804232333,-848.48755623,0.00016174,2]
[361793127,1747804232343,-300.0,0.00016436,2]
[361793128,1747804232353,-328.3544499,0.00016437,2]
[361793129,1747804232363,-500.0,0.00016437,2]
[361793130,1747804232373,-500.0,0.00016437,2]
[361793131,1747804232382,-500.0,0.00016437,2]
[361793132,1747804232391,-206.24521007,0.00016437,2]
[361793133,1747804232401,-500.0,0.00016437,2]
[361793134,1747804232411,-500.0,0.00016437,2]
[361793135,1747804232421,-500.0,0.00016437,2]
[361793136,1747804232436,-500.0,0.00016437,2]
[361793137,1747804232446,-500.0,0.00016437,2]
[361793139,1747804232456,-500.0,0.00016437,2]
[361793140,1747804232466,-500.0,0.00016437,2]
[361793141,1747804232476,-500.0,0.00016437,2]
[361793142,1747804232485,-500.0,0.00016437,2]
[361793143,1747804232495,-500.0,0.00016437,2]
[361793144,1747804232505,-500.0,0.00016437,2]
[361793145,1747804232514,-500.0,0.00016437,2]
[361793146,1747804232524,-500.0,0.00016437,2]
[361793147,1747804232534,-157.58584454,0.00016437,2]
[361793148,1747804232544,-500.0,0.00016437,2]
[361793149,1747804232554,-500.0,0.00016437,2]
[361793150,1747804232564,-500.0,0.00016437,2]
[361793151,1747804232575,-500.0,0.00016437,2]
[361793152,1747804232587,-405.52953851,0.00016438,2]
[361793153,1747804232598,-430.0,0.00016438,2]
[361793154,1747804232611,-430.0,0.00016438,2]
[361793155,1747804232621,-404.49380786,0.00016438,2]
[361793156,1747804232631,-443.92716718,0.00016438,2]
[361793157,1747804232642,-430.0,0.00016438,2]
[361793158,1747804232653,-430.0,0.00016438,2]
[361793159,1747804232664,-430.0,0.00016438,2]
[361793160,1747804232681,-430.0,0.00016438,2]
[361793161,1747804232693,-430.0,0.00016438,2]
[361793162,1747804232705,-430.0,0.00016438,2]
[361793163,1747804232716,-407.05803458,0.00016438,2]
[361793164,1747804232727,-430.0,0.00016438,2]
[361793172,1747804232946,-430.0,0.00016438,2]
[361793174,1747804232957,-430.0,0.00016438,2]
[361793176,1747804232968,-430.0,0.00016438,2]
[361793178,1747804232978,-430.0,0.00016438,2]
[361793179,1747804232988,-430.0,0.00016438,2]
[361793181,1747804232999,-430.0,0.00016438,2]
[361793183,1747804233010,-430.0,0.00016438,2]
[361793185,1747804233022,-430.0,0.00016438,2]
[361793187,1747804233033,-430.0,0.00016438,2]
[361793189,1747804233044,-430.0,0.00016438,2]
[361793191,1747804233056,-402.21720721,0.00016438,2]
[361793193,1747804233067,-131.72696333,0.00016438,2]
[361793197,1747804233107,-298.27303667,0.00016438,2]
[361793199,1747804233118,-421.30642643,0.00016438,2]
[361793201,1747804233128,-446.13,0.00016438,2]
[361793203,1747804233138,-430.0,0.00016438,2]
[361793205,1747804233149,-430.0,0.00016438,2]
[361793207,1747804233159,-430.0,0.00016438,2]
[361793209,1747804233169,-430.0,0.00016438,2]
[361793211,1747804233189,-430.0,0.00016438,2]
[361793213,1747804233199,-517.58031536,0.00016438,2]
[361793215,1747804233211,-430.0,0.00016438,2]
[361793217,1747804233222,-339.96216161,0.00016438,2]
[361793219,1747804233232,-430.0,0.00016438,2]
[361793221,1747804233243,-520.58,0.00016438,2]
[361793223,1747804233253,-430.0,0.00016438,2]
[361793225,1747804233265,-430.0,0.00016438,2]
[361793227,1747804233276,-430.0,0.00016438,2]
[361793228,1747804233287,-430.0,0.00016438,2]
[361793230,1747804233297,-262.85429377,0.00016438,2]
[361793232,1747804233307,-871.82,0.00016438,2]
[361793234,1747804233321,-430.0,0.00016438,2]
[361793236,1747804233330,-430.0,0.00016438,2]
[361793238,1747804233340,-430.0,0.00016438,2]
[361793240,1747804233350,-430.0,0.00016438,2]
[361793242,1747804233360,-430.0,0.00016438,2]
[361793244,1747804233369,-192.49376616,0.00016438,2]
[361793246,1747804233382,-237.50623384,0.00016438,2]
[361793248,1747804233391,-430.0,0.00016438,2]
[361793250,1747804233401,-430.0,0.00016438,2]
[361793252,1747804233410,-526.49,0.00016438,2]
[361793254,1747804233421,-2075.25,0.00016438,2]
[361793255,1747804233435,-1865.77,0.00016438,2]
[361793257,1747804233445,-430.0,0.00016438,2]
[361793258,1747804233455,-430.0,0.00016438,2]
[361793260,1747804233466,-453.94,0.00016438,2]
[361793262,1747804233476,-430.0,0.00016438,2]
[361793264,1747804233486,-430.0,0.00016438,2]
[361793266,1747804233496,-430.0,0.00016438,2]
[361793268,1747804233507,-1558.65,0.00016438,2]
[361793270,1747804233516,-430.0,0.00016438,2]
[361793271,1747804233527,-430.0,0.00016438,2]
[361793273,1747804233536,-430.0,0.00016438,2]
[361793275,1747804233547,-430.0,0.00016438,2]
[361793277,1747804233557,-430.0,0.00016438,2]
[361793279,1747804233567,-559.61805242,0.00016438,2]
[361793281,1747804233577,-430.0,0.00016438,2]
[361793282,1747804233587,-558.67190043,0.00016438,2]
[361793283,1747804233597,-452.43,0.00016438,2]
[361793284,1747804233607,-430.0,0.00016438,2]
[361793285,1747804233617,-430.0,0.00016438,2]
[361793286,1747804233627,-430.0,0.00016438,2]
[361793287,1747804233636,-498.88,0.00016438,2]
[361793288,1747804233646,-430.0,0.00016438,2]
[361793289,1747804233656,-430.0,0.00016438,2]
[361793290,1747804233666,-451.57301229,0.00016438,2]
[361793291,1747804233681,-430.0,0.00016438,2]
[361793292,1747804233691,-596.99,0.00016438,2]
[361793293,1747804233701,-430.0,0.00016438,2]
[361793295,1747804233712,-430.0,0.00016438,2]
[361793297,1747804233722,-670.58,0.00016438,2]
[361793298,1747804233732,-430.0,0.00016438,2]
[361793299,1747804233742,-430.0,0.00016438,2]
[361793300,1747804233752,-430.0,0.00016438,2]
[361793301,1747804233764,-543.73,0.00016438,2]
[361793302,1747804233774,-430.0,0.00016438,2]
[361793303,1747804233784,-430.0,0.00016438,2]
[361793304,1747804233795,-998.6,0.00016438,2]
[361793305,1747804233804,-430.0,0.00016438,2]
[361793306,1747804233815,-430.0,0.00016438,2]
[361793307,1747804233825,-30.56200767,0.00016438,2]
[361793309,1747804238194,-430.29799233,0.00016438,2]
[361793310,1747804238206,-430.0,0.00016438,2]
[361793311,1747804238216,-430.0,0.00016438,2]
[361793312,1747804238227,-430.0,0.00016438,2]
[361793313,1747804238237,-284.21815844,0.00016438,2]
[361793314,1747804238247,-430.0,0.00016438,2]
[361793315,1747804238257,-430.0,0.00016438,2]
[361793316,1747804238267,-430.0,0.00016438,2]
[361793317,1747804238277,-430.0,0.00016438,2]
[361793318,1747804238286,-430.0,0.00016438,2]
[361793319,1747804238296,-430.0,0.00016438,2]
[361793320,1747804238305,-430.0,0.00016438,2]
[361793321,1747804238315,-430.0,0.00016438,2]
[361793322,1747804238325,-430.0,0.00016438,2]
[361793323,1747804238334,-430.0,0.00016438,2]
[361793324,1747804238344,-430.0,0.00016438,2]
[361793325,1747804238353,-430.0,0.00016438,2]
[361793326,1747804238363,-430.0,0.00016438,2]
[361793327,1747804238372,-471.13,0.00016438,2]
[361793328,1747804238382,-430.0,0.00016438,2]
[361793329,1747804238391,-894.16,0.00016438,2]
[361793330,1747804238400,-430.0,0.00016438,2]
[361793331,1747804238410,-481.18900749,0.00016438,2]
[361793332,1747804238419,-549.74,0.00016438,2]
[361793333,1747804238429,-430.0,0.00016438,2]
[361793334,1747804238438,-430.0,0.00016438,2]
[361793335,1747804238448,-430.0,0.00016438,2]
[361793336,1747804238457,-430.0,0.00016438,2]
[361793337,1747804238467,-430.0,0.00016438,2]
[361793338,1747804238476,-498.89,0.00016438,2]
[361793340,1747804238486,-430.0,0.00016438,2]
[361793341,1747804238495,-430.0,0.00016712,2]
[361793342,1747804238504,-430.0,0.00016712,2]
[361793343,1747804238514,-430.0,0.00016712,2]
[361793345,1747804238523,-430.0,0.00016712,2]
[361793347,1747804238532,-430.0,0.00016712,2]
[361793348,1747804238542,-430.0,0.00016712,2]
[361793350,1747804238551,-430.0,0.00016712,2]
[361793351,1747804238561,-325.51,0.00016712,2]
[361793352,1747804238570,-430.0,0.00016712,2]
[361793353,1747804238579,-430.0,0.00016712,2]
[361793354,1747804238589,-338.85150036,0.00016712,2]
[361793355,1747804238599,-430.0,0.00016712,2]
[361793356,1747804238609,-430.0,0.00016712,2]
[361793357,1747804238619,-430.0,0.00016712,2]
[361793358,1747804238628,-430.0,0.00016712,2]
[361793359,1747804238638,-430.0,0.00016712,2]
[361793360,1747804238647,-430.0,0.00016712,2]
[361793361,1747804238657,-430.0,0.00016712,2]
[361793362,1747804238666,-446.13,0.00016712,2]
[361793363,1747804238676,-430.0,0.00016712,2]
[361793364,1747804238686,-430.0,0.00016712,2]
[361793365,1747804238696,-430.0,0.00016712,2]
[361793366,1747804238705,-283.65128043,0.00016712,2]
[361793367,1747804238715,-430.0,0.00016712,2]
[361793368,1747804238724,-430.0,0.00016712,2]
[361793369,1747804238733,-430.0,0.00016712,2]
[361793370,1747804238743,-430.0,0.00016712,2]
[361793371,1747804238753,-430.0,0.00016712,2]
[361793372,1747804238764,-430.0,0.00016712,2]
[361793373,1747804238774,-430.0,0.00016712,2]
[361793374,1747804238783,-871.82,0.00016712,2]
[361793375,1747804238794,-430.0,0.00016712,2]
[361793376,1747804238803,-430.0,0.00016712,2]
[361793377,1747804238813,-430.0,0.00016712,2]
[361793378,1747804238822,-430.0,0.00016712,2]
[361793379,1747804238831,-430.0,0.00016712,2]
[361793380,1747804238841,-430.0,0.00016712,2]
[361793381,1747804238851,-526.49,0.00016712,2]
[361793382,1747804238860,-2075.25,0.00016712,2]
[361793383,1747804238870,-1865.77,0.00016712,2]
[361793384,1747804238879,-310.80700927,0.00016712,2]
[361793385,1747804238888,-430.0,0.00016712,2]
[361793386,1747804238898,-453.94,0.00016712,2]
[361793387,1747804238907,-430.0,0.00016712,2]
[361793388,1747804238916,-430.0,0.00016712,2]
[361793389,1747804238925,-430.0,0.00016712,2]
[361793390,1747804238936,-1558.65,0.00016712,2]
[361793391,1747804238945,-430.0,0.00016712,2]
[361793392,1747804238955,-430.0,0.00016712,2]
[361793393,1747804238965,-190.14678823,0.00016712,2]
[361793394,1747804238975,-430.0,0.00016712,2]
[361793395,1747804238984,-430.0,0.00016712,2]
[361793396,1747804238993,-430.0,0.00016712,2]
[361793397,1747804239003,-452.43,0.00016712,2]
[361793398,1747804239012,-430.0,0.00016712,2]
[361793399,1747804239021,-430.0,0.00016712,2]
[361793400,1747804239030,-430.0,0.00016712,2]
[361793401,1747804239040,-498.88,0.00016712,2]
[361793402,1747804239050,-430.0,0.00016712,2]
[361793403,1747804239059,-430.0,0.00016712,2]
[361793404,1747804239069,-430.0,0.00016712,2]
[361793405,1747804239078,-430.0,0.00016712,2]
[361793406,1747804239088,-596.99,0.00016712,2]
[361793407,1747804239097,-430.0,0.00016712,2]
[361793408,1747804239106,-670.58,0.00016712,2]
[361793409,1747804239116,-430.0,0.00016712,2]
[361793410,1747804239125,-430.0,0.00016712,2]
[361793411,1747804239134,-238.04215822,0.00016712,2]
[361793412,1747804239143,-543.73,0.00016712,2]
[361793413,1747804239152,-430.0,0.00016712,2]
[361793414,1747804239162,-430.0,0.00016712,2]
[361793415,1747804239170,-998.6,0.00016712,2]
[361793416,1747804239179,-430.0,0.00016712,2]
[361793417,1747804239187,-539.44891595,0.00016712,2]
[361793418,1747804239196,-460.86,0.00016712,2]
[361793419,1747804239205,-430.0,0.00016712,2]
[361793420,1747804239214,-430.0,0.00016712,2]
[361793421,1747804239222,-430.0,0.00016712,2]
[361793422,1747804239232,-430.0,0.00016712,2]
[361793423,1747804239242,-447.26232923,0.00016712,2]
[361793424,1747804239252,-430.0,0.00016712,2]
[361793425,1747804239262,-430.0,0.00016712,2]
[361793426,1747804239271,-430.0,0.00016712,2]
[361793427,1747804239281,-309.60510242,0.00016712,2]
[361793428,1747804239290,-430.0,0.00016712,2]
[361793429,1747804239299,-178.28350618,0.00016712,2]
[361793430,1747804239309,-430.0,0.00016712,2]
[361793431,1747804239318,-464.54942022,0.00016712,2]
[361793432,1747804239328,-244.06,0.00016712,2]
[361793433,1747804239337,-430.0,0.00016712,2]
[361793434,1747804239347,-430.0,0.00016712,2]
[361793435,1747804239356,-471.13,0.00016712,2]
[361793436,1747804239366,-430.0,0.00016712,2]
[361793437,1747804239375,-894.16,0.00016712,2]
[361793438,1747804239384,-430.0,0.00016712,2]
[361793439,1747804239394,-549.74,0.00016712,2]
[361793440,1747804239403,-430.0,0.00016712,2]
[361793441,1747804239413,-430.0,0.00016712,2]
[361793442,1747804239423,-430.0,0.00016712,2]
[361793443,1747804239574,-430.0,0.00016712,2]
[361793444,1747804239584,-430.0,0.00016712,2]
[361793445,1747804239594,-498.89,0.00016712,2]
[361793446,1747804239604,-430.0,0.00016712,2]
[361793447,1747804239612,-500.0,0.00016985,2]
[361793448,1747804239621,-363.68072525,0.00016985,2]
[361793449,1747804239630,-500.0,0.00016985,2]
[361793450,1747804239639,-500.0,0.00016985,2]
[361793451,1747804239648,-500.0,0.00016985,2]
[361793452,1747804239658,-222.37272787,0.00016985,2]
[361793453,1747804239666,-500.0,0.00016985,2]
[361793454,1747804239675,-618.08419253,0.00016985,2]
[361793455,1747804239685,-430.0,0.00016986,2]
[361793456,1747804239693,-430.0,0.00016986,2]
[361793457,1747804239703,-430.0,0.00016986,2]
[361793458,1747804239713,-217.94429613,0.00016986,2]
[361793459,1747804239722,-430.0,0.00016986,2]
[361793460,1747804239732,-430.0,0.00016986,2]
[361793461,1747804239741,-435.76980325,0.00016986,2]
[361793462,1747804239754,-430.0,0.00016986,2]
[361793463,1747804239764,-430.0,0.00016986,2]
[361793464,1747804239773,-430.0,0.00016986,2]
[361793465,1747804239783,-430.0,0.00016986,2]
[361793466,1747804239793,-346.10544246,0.00016986,2]
[361793467,1747804239803,-430.0,0.00016986,2]
[361793468,1747804239813,-430.0,0.00016986,2]
[361793469,1747804239823,-430.0,0.00016986,2]
[361793470,1747804239834,-430.0,0.00016986,2]
[361793471,1747804239845,-446.13,0.00016986,2]
[361793472,1747804239855,-498.30619822,0.00016986,2]
[361793473,1747804239867,-259.99761024,0.00016986,2]
[361793474,1747804239876,-430.0,0.00016986,2]
[361793475,1747804239886,-430.0,0.00016986,2]
[361793476,1747804239895,-430.0,0.00016986,2]
[361793477,1747804239904,-430.0,0.00016986,2]
[361793479,1747804239913,-430.0,0.00016986,2]
[361793480,1747804239923,-430.0,0.00016986,2]
[361793481,1747804239934,-430.0,0.00016986,2]
[361793482,1747804239943,-430.0,0.00016986,2]
[361793483,1747804239952,-871.82,0.00016986,2]
[361793484,1747804239962,-430.0,0.00016986,2]
[361793485,1747804239971,-430.0,0.00016986,2]
[361793486,1747804239980,-259.18,0.00016986,2]
[361793487,1747804239990,-430.0,0.00016986,2]
[361793488,1747804240000,-430.0,0.00016986,2]
[361793489,1747804240009,-430.0,0.00016986,2]
[361793490,1747804240019,-526.49,0.00016986,2]
[361793491,1747804240028,-2075.25,0.00016986,2]
[361793492,1747804240038,-1865.77,0.00016986,2]
[361793493,1747804240047,-430.0,0.00016986,2]
[361793494,1747804240058,-453.94,0.00016986,2]
[361793496,1747804240067,-430.0,0.00016986,2]
[361793497,1747804240077,-430.0,0.00016986,2]
[361793498,1747804240086,-430.0,0.00016986,2]
[361793499,1747804240096,-1558.65,0.00016986,2]
[361793500,1747804240105,-394.99362954,0.00016986,2]
[361793501,1747804240115,-430.0,0.00016986,2]
[361793503,1747804240124,-430.0,0.00016986,2]
[361793505,1747804240135,-430.0,0.00016986,2]
[361793506,1747804240144,-430.0,0.00016986,2]
[361793507,1747804240153,-452.43,0.00016986,2]
[361793508,1747804240163,-389.60399174,0.00016986,2]
[361793509,1747804240172,-430.0,0.00016986,2]
[361793510,1747804240182,-155.33850033,0.00016986,2]
[361793511,1747804240191,-498.88,0.00016986,2]
[361793512,1747804240201,-430.0,0.00016986,2]
[361793513,1747804240212,-430.0,0.00016986,2]
[361793514,1747804240221,-430.0,0.00016986,2]
[361793515,1747804240231,-553.08542924,0.00016986,2]
[361793516,1747804240240,-596.99,0.00016986,2]